[Event "January 9 Late 2024"]
[Site "https://www.chess.com"]
[Date "2024.01.09"]
[Round "5"]
[White "Korchynskyi, Mykola"]
[Black "Nikologorsky, Matfei"]
[Result "1-0"]
[Board "103"]
[TimeControl "180+1"]
[WhiteFideId "34138005"]
[BlackFideId "24102474"]
[WhiteElo "2616"]
[BlackElo "2470"]
[WhiteTeam "UKR"]
[BlackTeam "FID"]
[WhiteClock "0:00:07"]
[BlackClock "0:00:02"]

1. d4 {[%clk 0:03:00]}  Nf6 {[%clk 0:02:56]} 2. c4 {[%clk 0:03:01]}  e6 {[%clk 0:02:56]} 3. Nc3 {[%clk 0:03:01]}  Bb4 {[%clk 0:02:55]} 4. Qc2 {[%clk 0:02:56]}  d5 {[%clk 0:02:55]} 5. cxd5 {[%clk 0:02:54]}  exd5 {[%clk 0:02:54]} 6. Bg5 {[%clk 0:02:50]}  h6 {[%clk 0:02:50]} 7. Bh4 {[%clk 0:02:47]}  O-O {[%clk 0:02:48]} 8. e3 {[%clk 0:02:28]}  c6 {[%clk 0:02:45]} 9. Nf3 {[%clk 0:02:28]}  Re8 {[%clk 0:02:37]} 10. Bd3 {[%clk 0:02:27]}  Nbd7 {[%clk 0:02:29]} 11. O-O {[%clk 0:02:27]}  Be7 {[%clk 0:02:27]} 12. Rab1 {[%clk 0:02:24]}  Nh5 {[%clk 0:02:23]} 13. Bxe7 {[%clk 0:02:22]}  Qxe7 {[%clk 0:02:24]} 14. b4 {[%clk 0:02:22]}  a6 {[%clk 0:02:10]} 15. a4 {[%clk 0:02:19]}  b5 {[%clk 0:01:54]} 16. Ne2 {[%clk 0:02:05]}  Bb7 {[%clk 0:01:50]} 17. a5 {[%clk 0:01:44]}  Rad8 {[%clk 0:01:34]} 18. Nc1 {[%clk 0:01:41]}  Qd6 {[%clk 0:01:23]} 19. Nb3 {[%clk 0:01:38]}  Nhf6 {[%clk 0:01:13]} 20. Rfc1 {[%clk 0:01:35]}  Re7 {[%clk 0:01:08]} 21. Qd1 {[%clk 0:01:27]}  Rde8 {[%clk 0:01:05]} 22. Nc5 {[%clk 0:01:27]}  Nxc5 {[%clk 0:01:05]} 23. Rxc5 {[%clk 0:01:28]}  Nd7 {[%clk 0:01:05]} 24. Rc2 {[%clk 0:01:24]}  g6 {[%clk 0:00:51]} 25. Qd2 {[%clk 0:01:24]}  Kg7 {[%clk 0:00:50]} 26. Rbc1 {[%clk 0:01:24]}  f5 {[%clk 0:00:43]} 27. h3 {[%clk 0:01:14]}  Re6 {[%clk 0:00:41]} 28. Nh4 {[%clk 0:00:58]}  Rf8 {[%clk 0:00:38]} 29. Nf3 {[%clk 0:00:55]}  Rc8 {[%clk 0:00:26]} 30. g3 {[%clk 0:00:50]}  Nf6 {[%clk 0:00:26]} 31. Ne5 {[%clk 0:00:47]}  Rxe5 {[%clk 0:00:26]} 32. dxe5 {[%clk 0:00:47]}  Qxe5 {[%clk 0:00:27]} 33. Rc5 {[%clk 0:00:37]}  Ne4 {[%clk 0:00:16]} 34. Bxe4 {[%clk 0:00:36]}  fxe4 {[%clk 0:00:17]} 35. Qe2 {[%clk 0:00:20]}  Qf6 {[%clk 0:00:16]} 36. Qg4 {[%clk 0:00:18]}  Rf8 {[%clk 0:00:16]} 37. R1c2 {[%clk 0:00:16]}  Bc8 {[%clk 0:00:14]} 38. Qe2 {[%clk 0:00:12]}  Bd7 {[%clk 0:00:14]} 39. h4 {[%clk 0:00:09]}  Re8 {[%clk 0:00:12]} 40. Qd2 {[%clk 0:00:09]}  Re6 {[%clk 0:00:12]} 41. Rc1 {[%clk 0:00:05]}  Rd6 {[%clk 0:00:12]} 42. Rd1 {[%clk 0:00:04]}  Bg4 {[%clk 0:00:12]} 43. Rdc1 {[%clk 0:00:03]}  Bf3 {[%clk 0:00:12]} 44. Qc3 {[%clk 0:00:03]}  d4 {[%clk 0:00:10]} 45. exd4 {[%clk 0:00:02]}  Kf7 {[%clk 0:00:09]} 46. Rxc6 {[%clk 0:00:02]}  Rxc6 {[%clk 0:00:06]} 47. Qxc6 {[%clk 0:00:03]}  Qxc6 {[%clk 0:00:06]} 48. Rxc6 {[%clk 0:00:03]}  e3 {[%clk 0:00:07]} 49. Rc5 {[%clk 0:00:02]}  e2 {[%clk 0:00:07]} 50. Re5 {[%clk 0:00:02]}  Kf6 {[%clk 0:00:07]} 51. Re3 {[%clk 0:00:02]}  Bg4 {[%clk 0:00:07]} 52. f3 {[%clk 0:00:03]}  Be6 {[%clk 0:00:03]} 53. Rxe2 {[%clk 0:00:03]}  Bc4 {[%clk 0:00:03]} 54. Re5 {[%clk 0:00:04]}  g5 {[%clk 0:00:04]} 55. hxg5+ {[%clk 0:00:04]}  hxg5 {[%clk 0:00:04]} 56. Kf2 {[%clk 0:00:04]}  Kg6 {[%clk 0:00:05]} 57. f4 {[%clk 0:00:05]}  gxf4 {[%clk 0:00:04]} 58. gxf4 {[%clk 0:00:05]}  Kf6 {[%clk 0:00:05]} 59. Ke3 {[%clk 0:00:06]}  Kf7 {[%clk 0:00:05]} 60. d5 {[%clk 0:00:07]}  Kf6 {[%clk 0:00:05]} 61. Kd4 {[%clk 0:00:06]}  Kf7 {[%clk 0:00:04]} 62. Kc5 {[%clk 0:00:07]}  Kf6 {[%clk 0:00:02]} 63. Kb6 {[%clk 0:00:07]} 1-0

[Event "January 9 Late 2024"]
[Site "https://www.chess.com"]
[Date "2024.01.09"]
[Round "5"]
[White "Onufrienko, Vladislav"]
[Black "Peczely, Sebastian Zsombor"]
[Result "0-1"]
[Board "104"]
[TimeControl "180+1"]
[WhiteFideId "13804332"]
[BlackFideId "750964"]
[WhiteElo "2611"]
[BlackElo "2469"]
[WhiteTeam "KGZ"]
[BlackTeam "HUN"]
[WhiteClock "0:00:12"]
[BlackClock "0:00:07"]

1. e4 {[%clk 0:03:00]}  c5 {[%clk 0:02:59]} 2. Nc3 {[%clk 0:03:01]}  d6 {[%clk 0:02:56]} 3. d4 {[%clk 0:03:01]}  cxd4 {[%clk 0:02:56]} 4. Qxd4 {[%clk 0:03:02]}  Nc6 {[%clk 0:02:55]} 5. Qd2 {[%clk 0:03:02]}  g6 {[%clk 0:02:54]} 6. b3 {[%clk 0:03:03]}  Bh6 {[%clk 0:02:53]} 7. f4 {[%clk 0:03:04]}  e5 {[%clk 0:02:54]} 8. g3 {[%clk 0:03:01]}  exf4 {[%clk 0:02:52]} 9. gxf4 {[%clk 0:02:58]}  Qh4+ {[%clk 0:02:44]} 10. Qf2 {[%clk 0:02:58]}  Qxf2+ {[%clk 0:02:40]} 11. Kxf2 {[%clk 0:02:59]}  Be6 {[%clk 0:02:20]} 12. Bd3 {[%clk 0:02:57]}  Nb4 {[%clk 0:02:16]} 13. Nb5 {[%clk 0:02:53]}  Bg7 {[%clk 0:02:08]} 14. Rb1 {[%clk 0:02:48]}  Kd7 {[%clk 0:01:50]} 15. Be3 {[%clk 0:02:22]}  a6 {[%clk 0:01:45]} 16. Nd4 {[%clk 0:02:22]}  Nxa2 {[%clk 0:01:42]} 17. Nge2 {[%clk 0:02:08]}  Nb4 {[%clk 0:01:36]} 18. Nc3 {[%clk 0:01:53]}  Rc8 {[%clk 0:01:31]} 19. Na4 {[%clk 0:01:53]}  Kc7 {[%clk 0:01:07]} 20. Nb6 {[%clk 0:01:34]}  Re8 {[%clk 0:01:05]} 21. Be2 {[%clk 0:01:07]}  Nc6 {[%clk 0:01:05]} 22. Nxc6 {[%clk 0:01:00]}  Kxc6 {[%clk 0:01:05]} 23. Bf3 {[%clk 0:00:57]}  Kc7 {[%clk 0:01:05]} 24. c4 {[%clk 0:00:57]}  Ne7 {[%clk 0:01:00]} 25. Rhd1 {[%clk 0:00:57]}  Nc8 {[%clk 0:01:00]} 26. Nd5+ {[%clk 0:00:56]}  Bxd5 {[%clk 0:00:58]} 27. exd5 {[%clk 0:00:52]}  f5 {[%clk 0:00:53]} 28. b4 {[%clk 0:00:52]}  b6 {[%clk 0:00:40]} 29. c5 {[%clk 0:00:46]}  bxc5 {[%clk 0:00:20]} 30. bxc5 {[%clk 0:00:47]}  Rxe3 {[%clk 0:00:19]} 31. cxd6+ {[%clk 0:00:43]}  Nxd6 {[%clk 0:00:18]} 32. Kxe3 {[%clk 0:00:43]}  Re8+ {[%clk 0:00:18]} 33. Kf2 {[%clk 0:00:43]}  Nb5 {[%clk 0:00:18]} 34. d6+ {[%clk 0:00:39]}  Kd7 {[%clk 0:00:15]} 35. Rbc1 {[%clk 0:00:39]}  Bd4+ {[%clk 0:00:15]} 36. Kg3 {[%clk 0:00:36]}  Kxd6 {[%clk 0:00:16]} 37. Bc6 {[%clk 0:00:34]}  Re3+ {[%clk 0:00:14]} 38. Kg2 {[%clk 0:00:33]}  Re2+ {[%clk 0:00:13]} 39. Kf3 {[%clk 0:00:31]}  Re3+ {[%clk 0:00:13]} 40. Kg2 {[%clk 0:00:28]}  Re2+ {[%clk 0:00:12]} 41. Kf1 {[%clk 0:00:26]}  Rf2+ {[%clk 0:00:10]} 42. Ke1 {[%clk 0:00:26]}  Rxf4 {[%clk 0:00:11]} 43. Ke2 {[%clk 0:00:22]}  Ke5 {[%clk 0:00:08]} 44. Bf3 {[%clk 0:00:20]}  Nc3+ {[%clk 0:00:06]} 45. Rxc3 {[%clk 0:00:20]}  Bxc3 {[%clk 0:00:06]} 46. Rd5+ {[%clk 0:00:19]}  Kf6 {[%clk 0:00:07]} 47. Rc5 {[%clk 0:00:18]}  Bd4 {[%clk 0:00:06]} 48. Rc6+ {[%clk 0:00:19]}  Kg5 {[%clk 0:00:06]} 49. Rxa6 {[%clk 0:00:20]}  h5 {[%clk 0:00:06]} 50. Bc6 {[%clk 0:00:17]}  Rh4 {[%clk 0:00:06]} 51. Be8 {[%clk 0:00:15]}  Rxh2+ {[%clk 0:00:06]} 52. Kd3 {[%clk 0:00:16]}  Bf6 {[%clk 0:00:06]} 53. Ke3 {[%clk 0:00:15]}  Rh3+ {[%clk 0:00:06]} 54. Kf2 {[%clk 0:00:15]}  Rc3 {[%clk 0:00:06]} 55. Kg2 {[%clk 0:00:14]}  h4 {[%clk 0:00:06]} 56. Ra4 {[%clk 0:00:13]}  h3+ {[%clk 0:00:06]} 57. Kh2 {[%clk 0:00:13]}  Be5+ {[%clk 0:00:07]} 58. Kg1 {[%clk 0:00:13]}  Rc2 {[%clk 0:00:06]} 59. Bc6 {[%clk 0:00:12]}  h2+ {[%clk 0:00:07]} 60. Kh1 {[%clk 0:00:12]}  Rc1+ {[%clk 0:00:07]} 61. Kg2 {[%clk 0:00:12]}  h1=Q+ {[%clk 0:00:07]} 62. Kf2 {[%clk 0:00:12]}  Qg1+ {[%clk 0:00:07]} 0-1

[Event "January 9 Late 2024"]
[Site "https://www.chess.com"]
[Date "2024.01.09"]
[Round "5"]
[White "Zhu, Jiner"]
[Black "Bochnicka, Vladimir"]
[Result "1-0"]
[Board "105"]
[TimeControl "180+1"]
[WhiteFideId "8608059"]
[BlackFideId "14943450"]
[WhiteElo "2610"]
[BlackElo "2464"]
[WhiteTeam "CHN"]
[BlackTeam "SVK"]
[WhiteClock "0:00:08"]
[BlackClock "0:00:00"]

1. c4 {[%clk 0:02:31]}  e5 {[%clk 0:02:54]} 2. Nc3 {[%clk 0:02:31]}  Nf6 {[%clk 0:02:54]} 3. Nf3 {[%clk 0:02:29]}  Nc6 {[%clk 0:02:51]} 4. g3 {[%clk 0:02:29]}  d6 {[%clk 0:02:51]} 5. Bg2 {[%clk 0:02:30]}  g6 {[%clk 0:02:51]} 6. O-O {[%clk 0:02:29]}  Bg7 {[%clk 0:02:52]} 7. e3 {[%clk 0:02:28]}  O-O {[%clk 0:02:52]} 8. d4 {[%clk 0:02:28]}  Re8 {[%clk 0:02:35]} 9. d5 {[%clk 0:02:26]}  Ne7 {[%clk 0:02:34]} 10. e4 {[%clk 0:02:24]}  Nd7 {[%clk 0:02:26]} 11. Be3 {[%clk 0:02:14]}  Rf8 {[%clk 0:02:26]} 12. Rc1 {[%clk 0:02:09]}  f5 {[%clk 0:02:26]} 13. Ng5 {[%clk 0:02:05]}  Nb6 {[%clk 0:01:58]} 14. c5 {[%clk 0:01:48]}  dxc5 {[%clk 0:01:56]} 15. Bxc5 {[%clk 0:01:49]}  Bf6 {[%clk 0:01:42]} 16. Ne6 {[%clk 0:01:44]}  Bxe6 {[%clk 0:01:41]} 17. dxe6 {[%clk 0:01:45]}  c6 {[%clk 0:01:27]} 18. exf5 {[%clk 0:01:32]}  gxf5 {[%clk 0:01:27]} 19. Qe2 {[%clk 0:01:25]}  e4 {[%clk 0:01:16]} 20. Qe3 {[%clk 0:00:38]}  Nbd5 {[%clk 0:01:06]} 21. Nxd5 {[%clk 0:00:37]}  Nxd5 {[%clk 0:01:06]} 22. Qb3 {[%clk 0:00:36]}  Qc8 {[%clk 0:00:43]} 23. Bxf8 {[%clk 0:00:32]}  Kxf8 {[%clk 0:00:44]} 24. Bh3 {[%clk 0:00:29]}  Qxe6 {[%clk 0:00:42]} 25. Qxb7 {[%clk 0:00:28]}  Rc8 {[%clk 0:00:38]} 26. Rfd1 {[%clk 0:00:21]}  Rc7 {[%clk 0:00:29]} 27. Qb8+ {[%clk 0:00:19]}  Rc8 {[%clk 0:00:28]} 28. Qxa7 {[%clk 0:00:18]}  e3 {[%clk 0:00:27]} 29. fxe3 {[%clk 0:00:18]}  Nxe3 {[%clk 0:00:20]} 30. Re1 {[%clk 0:00:17]}  Re8 {[%clk 0:00:17]} 31. Qc5+ {[%clk 0:00:15]}  Kg8 {[%clk 0:00:16]} 32. Qxc6 {[%clk 0:00:15]}  Qf7 {[%clk 0:00:05]} 33. Kh1 {[%clk 0:00:12]}  Bd4 {[%clk 0:00:04]} 34. Rcd1 {[%clk 0:00:08]}  Bxb2 {[%clk 0:00:03]} 35. Rd2 {[%clk 0:00:08]}  Bg7 {[%clk 0:00:02]} 36. Rd3 {[%clk 0:00:08]}  Bh6 {[%clk 0:00:01]} 37. Bg2 {[%clk 0:00:08]}  Qg6 {[%clk 0:00:00]} 38. Bd5+ {[%clk 0:00:08]} 1-0

[Event "January 9 Late 2024"]
[Site "https://www.chess.com"]
[Date "2024.01.09"]
[Round "5"]
[White "Ezat, Mohamed"]
[Black "Estrada Nieto, Julian"]
[Result "1-0"]
[Board "106"]
[TimeControl "180+1"]
[WhiteFideId "10600906"]
[BlackFideId "5101018"]
[WhiteElo "2457"]
[BlackElo "2606"]
[WhiteTeam "EGY"]
[BlackTeam "ESP"]
[WhiteClock "0:00:42"]
[BlackClock "0:00:07"]

1. d4 {[%clk 0:02:56]}  d5 {[%clk 0:02:51]} 2. c4 {[%clk 0:02:55]}  dxc4 {[%clk 0:02:52]} 3. e3 {[%clk 0:02:54]}  Nf6 {[%clk 0:02:50]} 4. Bxc4 {[%clk 0:02:54]}  e6 {[%clk 0:02:51]} 5. Nf3 {[%clk 0:02:53]}  c5 {[%clk 0:02:52]} 6. O-O {[%clk 0:02:52]}  a6 {[%clk 0:02:49]} 7. Qe2 {[%clk 0:02:52]}  Nc6 {[%clk 0:02:47]} 8. Rd1 {[%clk 0:02:51]}  Qc7 {[%clk 0:02:47]} 9. Nc3 {[%clk 0:02:49]}  Be7 {[%clk 0:02:46]} 10. a3 {[%clk 0:02:42]}  O-O {[%clk 0:02:45]} 11. d5 {[%clk 0:02:41]}  exd5 {[%clk 0:02:44]} 12. Bxd5 {[%clk 0:02:40]}  Rd8 {[%clk 0:02:30]} 13. h3 {[%clk 0:02:39]}  Bd6 {[%clk 0:02:12]} 14. e4 {[%clk 0:02:36]}  Ne5 {[%clk 0:01:52]} 15. Bg5 {[%clk 0:02:25]}  Nxf3+ {[%clk 0:01:42]} 16. Qxf3 {[%clk 0:02:24]}  Bh2+ {[%clk 0:01:40]} 17. Kh1 {[%clk 0:02:24]}  Be5 {[%clk 0:01:40]} 18. Bc4 {[%clk 0:02:19]}  Be6 {[%clk 0:01:39]} 19. Nd5 {[%clk 0:02:14]}  Bxd5 {[%clk 0:01:38]} 20. Bxd5 {[%clk 0:02:14]}  Rd6 {[%clk 0:01:33]} 21. Rac1 {[%clk 0:02:12]}  h6 {[%clk 0:01:12]} 22. Be3 {[%clk 0:02:08]}  Nxd5 {[%clk 0:01:11]} 23. exd5 {[%clk 0:02:08]}  b6 {[%clk 0:01:06]} 24. b4 {[%clk 0:02:05]}  c4 {[%clk 0:01:02]} 25. Qe4 {[%clk 0:02:05]}  Re8 {[%clk 0:00:50]} 26. Rxc4 {[%clk 0:01:47]}  Qd7 {[%clk 0:00:45]} 27. Qf3 {[%clk 0:01:34]}  Rd8 {[%clk 0:00:37]} 28. Rc2 {[%clk 0:01:24]}  Rxd5 {[%clk 0:00:35]} 29. Rxd5 {[%clk 0:01:23]}  Qxd5 {[%clk 0:00:35]} 30. Rd2 {[%clk 0:01:23]}  Qa8 {[%clk 0:00:32]} 31. Qxa8 {[%clk 0:01:20]}  Rxa8 {[%clk 0:00:32]} 32. Bxb6 {[%clk 0:01:19]}  Bf6 {[%clk 0:00:26]} 33. Kg1 {[%clk 0:01:10]}  Rc8 {[%clk 0:00:26]} 34. Bc5 {[%clk 0:01:10]}  a5 {[%clk 0:00:22]} 35. Kf1 {[%clk 0:01:08]}  Bc3 {[%clk 0:00:19]} 36. Rd3 {[%clk 0:00:58]}  axb4 {[%clk 0:00:17]} 37. Bxb4 {[%clk 0:00:59]}  Bxb4 {[%clk 0:00:17]} 38. axb4 {[%clk 0:00:59]}  Rc1+ {[%clk 0:00:17]} 39. Ke2 {[%clk 0:00:59]}  Rb1 {[%clk 0:00:17]} 40. Rd4 {[%clk 0:01:00]}  Kf8 {[%clk 0:00:17]} 41. Kd3 {[%clk 0:01:00]}  Rb2 {[%clk 0:00:17]} 42. Rf4 {[%clk 0:00:57]}  Ke7 {[%clk 0:00:12]} 43. Kc4 {[%clk 0:00:57]}  g5 {[%clk 0:00:11]} 44. Rf3 {[%clk 0:00:57]}  Ke6 {[%clk 0:00:11]} 45. Kc5 {[%clk 0:00:48]}  Rc2+ {[%clk 0:00:10]} 46. Kb6 {[%clk 0:00:47]}  Rb2 {[%clk 0:00:10]} 47. b5 {[%clk 0:00:48]}  f5 {[%clk 0:00:11]} 48. Kc6 {[%clk 0:00:45]}  Rc2+ {[%clk 0:00:11]} 49. Kb7 {[%clk 0:00:45]}  f4 {[%clk 0:00:11]} 50. b6 {[%clk 0:00:45]}  Rb2 {[%clk 0:00:11]} 51. Kc7 {[%clk 0:00:45]}  Rc2+ {[%clk 0:00:11]} 52. Kb8 {[%clk 0:00:45]}  Rb2 {[%clk 0:00:11]} 53. b7 {[%clk 0:00:45]}  h5 {[%clk 0:00:12]} 54. Rc3 {[%clk 0:00:44]}  g4 {[%clk 0:00:11]} 55. hxg4 {[%clk 0:00:43]}  hxg4 {[%clk 0:00:11]} 56. Kc7 {[%clk 0:00:43]}  Ke5 {[%clk 0:00:10]} 57. b8=Q {[%clk 0:00:43]}  Rxb8 {[%clk 0:00:10]} 58. Kxb8 {[%clk 0:00:43]}  Kd4 {[%clk 0:00:11]} 59. Ra3 {[%clk 0:00:42]}  f3 {[%clk 0:00:07]} 60. gxf3 {[%clk 0:00:42]} 1-0

[Event "January 9 Late 2024"]
[Site "https://www.chess.com"]
[Date "2024.01.09"]
[Round "5"]
[White "Garrido Diaz, Jose Antonio"]
[Black "Roberson, Peter T"]
[Result "1-0"]
[Board "108"]
[TimeControl "180+1"]
[WhiteFideId "24516252"]
[BlackFideId "412384"]
[WhiteElo "2451"]
[BlackElo "2593"]
[WhiteTeam "ESP"]
[BlackTeam "ENG"]
[WhiteClock "0:00:33"]
[BlackClock "0:00:04"]

1. d4 {[%clk 0:03:00]}  Nf6 {[%clk 0:03:00]} 2. c4 {[%clk 0:03:00]}  c5 {[%clk 0:03:00]} 3. e3 {[%clk 0:02:57]}  g6 {[%clk 0:02:59]} 4. Nf3 {[%clk 0:02:57]}  Bg7 {[%clk 0:03:00]} 5. Nc3 {[%clk 0:02:58]}  O-O {[%clk 0:03:01]} 6. Be2 {[%clk 0:02:58]}  cxd4 {[%clk 0:03:00]} 7. exd4 {[%clk 0:02:58]}  d5 {[%clk 0:03:01]} 8. cxd5 {[%clk 0:02:57]}  Nxd5 {[%clk 0:03:01]} 9. O-O {[%clk 0:02:58]}  Nc6 {[%clk 0:03:00]} 10. Nxd5 {[%clk 0:02:56]}  Qxd5 {[%clk 0:03:01]} 11. Be3 {[%clk 0:02:56]}  Rd8 {[%clk 0:02:58]} 12. Qa4 {[%clk 0:02:43]}  Bd7 {[%clk 0:02:44]} 13. Bc4 {[%clk 0:02:40]}  Nxd4 {[%clk 0:02:09]} 14. Bxd5 {[%clk 0:02:30]}  Nxf3+ {[%clk 0:02:06]} 15. Bxf3 {[%clk 0:02:31]}  Bxa4 {[%clk 0:02:06]} 16. Bxb7 {[%clk 0:02:27]}  Rab8 {[%clk 0:02:05]} 17. Bf3 {[%clk 0:02:22]}  Rxb2 {[%clk 0:01:52]} 18. Rac1 {[%clk 0:01:45]}  Bd4 {[%clk 0:01:29]} 19. Bxd4 {[%clk 0:01:40]}  Rxd4 {[%clk 0:01:30]} 20. Rc7 {[%clk 0:01:35]}  e6 {[%clk 0:01:26]} 21. Rxa7 {[%clk 0:01:34]}  Rxa2 {[%clk 0:01:12]} 22. Rc1 {[%clk 0:01:34]}  Bb3 {[%clk 0:01:00]} 23. Rxa2 {[%clk 0:01:24]}  Bxa2 {[%clk 0:01:01]} 24. g3 {[%clk 0:01:20]}  Kg7 {[%clk 0:00:57]} 25. Rc2 {[%clk 0:01:20]}  Bb3 {[%clk 0:00:55]} 26. Rb2 {[%clk 0:01:20]}  Bc4 {[%clk 0:00:55]} 27. Kg2 {[%clk 0:01:20]}  g5 {[%clk 0:00:54]} 28. h3 {[%clk 0:01:19]}  Kf6 {[%clk 0:00:45]} 29. Rb4 {[%clk 0:01:19]}  Ke5 {[%clk 0:00:43]} 30. Rb7 {[%clk 0:01:17]}  Kf6 {[%clk 0:00:33]} 31. g4 {[%clk 0:01:14]}  e5 {[%clk 0:00:27]} 32. Rb6+ {[%clk 0:01:13]}  Be6 {[%clk 0:00:27]} 33. Bb7 {[%clk 0:00:58]}  Kg7 {[%clk 0:00:24]} 34. Rb5 {[%clk 0:00:54]}  Kf6 {[%clk 0:00:21]} 35. Rb6 {[%clk 0:00:54]}  Rd7 {[%clk 0:00:17]} 36. Bc8 {[%clk 0:00:53]}  Re7 {[%clk 0:00:18]} 37. Ba6 {[%clk 0:00:52]}  Kg7 {[%clk 0:00:17]} 38. Bd3 {[%clk 0:00:50]}  h6 {[%clk 0:00:15]} 39. Be4 {[%clk 0:00:50]}  Bd7 {[%clk 0:00:14]} 40. Rb7 {[%clk 0:00:44]}  Kf6 {[%clk 0:00:13]} 41. Rb6+ {[%clk 0:00:44]}  Be6 {[%clk 0:00:13]} 42. Bf5 {[%clk 0:00:41]}  h5 {[%clk 0:00:08]} 43. Rd6 {[%clk 0:00:41]}  h4 {[%clk 0:00:08]} 44. Kf3 {[%clk 0:00:40]}  Re8 {[%clk 0:00:07]} 45. Rb6 {[%clk 0:00:39]}  Re7 {[%clk 0:00:04]} 46. Ra6 {[%clk 0:00:39]}  Re8 {[%clk 0:00:04]} 47. Rb6 {[%clk 0:00:39]}  Rd8 {[%clk 0:00:04]} 48. Ke3 {[%clk 0:00:40]}  Rd4 {[%clk 0:00:04]} 49. Bxe6 {[%clk 0:00:40]}  fxe6 {[%clk 0:00:05]} 50. Rb7 {[%clk 0:00:38]}  Ra4 {[%clk 0:00:05]} 51. Kf3 {[%clk 0:00:36]}  Ra3+ {[%clk 0:00:04]} 52. Kg2 {[%clk 0:00:37]}  Rc3 {[%clk 0:00:04]} 53. Rh7 {[%clk 0:00:36]}  e4 {[%clk 0:00:04]} 54. Rh6+ {[%clk 0:00:36]}  Ke5 {[%clk 0:00:04]} 55. Rg6 {[%clk 0:00:37]}  Kf4 {[%clk 0:00:03]} 56. Rf6+ {[%clk 0:00:37]}  Ke5 {[%clk 0:00:03]} 57. Rg6 {[%clk 0:00:38]}  e3 {[%clk 0:00:03]} 58. fxe3 {[%clk 0:00:36]}  Ke4 {[%clk 0:00:02]} 59. Rxe6+ {[%clk 0:00:36]}  Kd3 {[%clk 0:00:03]} 60. Kf3 {[%clk 0:00:32]}  Rc2 {[%clk 0:00:03]} 61. Rd6+ {[%clk 0:00:32]}  Kc3 {[%clk 0:00:03]} 62. Rc6+ {[%clk 0:00:32]}  Kb3 {[%clk 0:00:04]} 63. Rxc2 {[%clk 0:00:32]}  Kxc2 {[%clk 0:00:04]} 64. Ke4 {[%clk 0:00:33]} 1-0

[Event "January 9 Late 2024"]
[Site "https://www.chess.com"]
[Date "2024.01.09"]
[Round "5"]
[White "Hamblok, Roel"]
[Black "Peycheva, Gergana"]
[Result "1-0"]
[Board "109"]
[TimeControl "180+1"]
[WhiteFideId "209317"]
[BlackFideId "2916711"]
[WhiteElo "2592"]
[BlackElo "2450"]
[WhiteTeam "BEL"]
[BlackTeam "BUL"]
[WhiteClock "0:00:05"]
[BlackClock "0:00:00"]

1. e4 {[%clk 0:02:55]}  c5 {[%clk 0:02:58]} 2. b4 {[%clk 0:02:55]}  cxb4 {[%clk 0:02:57]} 3. a3 {[%clk 0:02:55]}  bxa3 {[%clk 0:02:53]} 4. Nxa3 {[%clk 0:02:53]}  d6 {[%clk 0:02:48]} 5. d4 {[%clk 0:02:52]}  g6 {[%clk 0:02:47]} 6. Bd3 {[%clk 0:02:51]}  Bg7 {[%clk 0:02:47]} 7. c3 {[%clk 0:02:51]}  Nf6 {[%clk 0:02:47]} 8. f4 {[%clk 0:02:51]}  O-O {[%clk 0:02:46]} 9. Nf3 {[%clk 0:02:52]}  b6 {[%clk 0:02:44]} 10. O-O {[%clk 0:02:51]}  Bb7 {[%clk 0:02:44]} 11. Qe1 {[%clk 0:02:46]}  Nbd7 {[%clk 0:02:38]} 12. e5 {[%clk 0:02:41]}  dxe5 {[%clk 0:02:38]} 13. fxe5 {[%clk 0:02:40]}  Ne8 {[%clk 0:02:29]} 14. Qh4 {[%clk 0:02:35]}  Nc5 {[%clk 0:02:18]} 15. Bc4 {[%clk 0:02:12]}  Ne4 {[%clk 0:02:17]} 16. Ng5 {[%clk 0:02:07]}  Nxg5 {[%clk 0:02:12]} 17. Bxg5 {[%clk 0:02:07]}  Nc7 {[%clk 0:01:30]} 18. Bxe7 {[%clk 0:01:59]}  Qd7 {[%clk 0:01:30]} 19. Bxf8 {[%clk 0:01:48]}  Rxf8 {[%clk 0:01:31]} 20. Rae1 {[%clk 0:01:36]}  Qa4 {[%clk 0:01:22]} 21. Qe7 {[%clk 0:01:36]}  Qc6 {[%clk 0:01:07]} 22. Bxf7+ {[%clk 0:01:08]}  Kh8 {[%clk 0:01:07]} 23. d5 {[%clk 0:01:05]}  Qxc3 {[%clk 0:00:45]} 24. Nb5 {[%clk 0:00:06]}  Nxb5 {[%clk 0:00:27]} 25. Qxb7 {[%clk 0:00:06]}  Bxe5 {[%clk 0:00:24]} 26. Be6 {[%clk 0:00:07]}  Bd4+ {[%clk 0:00:08]} 27. Kh1 {[%clk 0:00:07]}  Rxf1+ {[%clk 0:00:06]} 28. Rxf1 {[%clk 0:00:08]}  Bf6 {[%clk 0:00:00]} 29. Qf7 {[%clk 0:00:05]} 1-0

[Event "January 9 Late 2024"]
[Site "https://www.chess.com"]
[Date "2024.01.09"]
[Round "5"]
[White "Sliwicki, Damian"]
[Black "Golubev, Mikhail"]
[Result "1-0"]
[Board "110"]
[TimeControl "180+1"]
[WhiteFideId "1127128"]
[BlackFideId "14100983"]
[WhiteElo "2451"]
[BlackElo "2591"]
[WhiteTeam "POL"]
[BlackTeam "UKR"]
[WhiteClock "0:01:38"]
[BlackClock "0:00:00"]

1. e4 {[%clk 0:02:46]}  c5 {[%clk 0:00:37]} 2. Nf3 {[%clk 0:02:45]}  d6 {[%clk 0:00:37]} 3. d4 {[%clk 0:02:46]}  cxd4 {[%clk 0:00:37]} 4. Qxd4 {[%clk 0:02:46]}  Nf6 {[%clk 0:00:37]} 5. Bg5 {[%clk 0:02:47]}  Nc6 {[%clk 0:00:37]} 6. Bb5 {[%clk 0:02:47]}  Bd7 {[%clk 0:00:35]} 7. Bxc6 {[%clk 0:02:47]}  Bxc6 {[%clk 0:00:36]} 8. Nc3 {[%clk 0:02:48]}  e6 {[%clk 0:00:36]} 9. O-O-O {[%clk 0:02:47]}  Be7 {[%clk 0:00:37]} 10. Rhe1 {[%clk 0:02:46]}  O-O {[%clk 0:00:33]} 11. Kb1 {[%clk 0:02:47]}  Qc7 {[%clk 0:00:29]} 12. h4 {[%clk 0:02:45]}  Rfc8 {[%clk 0:00:22]} 13. Qe3 {[%clk 0:02:38]}  b5 {[%clk 0:00:20]} 14. e5 {[%clk 0:02:33]}  dxe5 {[%clk 0:00:19]} 15. Nxe5 {[%clk 0:02:34]}  Be8 {[%clk 0:00:18]} 16. Rd2 {[%clk 0:02:18]}  b4 {[%clk 0:00:18]} 17. Ne4 {[%clk 0:02:12]}  Nd5 {[%clk 0:00:18]} 18. Qg3 {[%clk 0:02:05]}  f6 {[%clk 0:00:13]} 19. Bh6 {[%clk 0:01:53]}  Bd8 {[%clk 0:00:13]} 20. Nd6 {[%clk 0:01:47]}  Bg6 {[%clk 0:00:12]} 21. Nxg6 {[%clk 0:01:38]}  hxg6 {[%clk 0:00:10]} 22. Qxg6 {[%clk 0:01:39]}  Qd7 {[%clk 0:00:00]} 23. Rxd5 {[%clk 0:01:38]} 1-0